Cogmind - Beta 16 @@@ ROGUE MODE // 2025.12.19 @ 22:33:52 Player: Gatamar Result: Destroyed by L6-PU6(R) with Subdweller Beam Cannon Performance ------------- Evolutions (0) 0 Regions Visited (3) 600 Robots Destroyed (14) 70 Value Destroyed (329) 329 Prototype IDs (12) 240 Alien Tech Used (0) 0 Bonus (41) 41 TOTAL SCORE: 1280 Bonus ------- Follower Combat Kills 60 Friendly Fire -19 Cogmind --------- Core Integrity 0/250 Matter 225/300 Energy 250/250 System Corruption 0% Temperature Cool (9) Movement Walking (120) Location -10/Subcaves Parts ------- > --- POWER (1) -------- Ion Engine > --- PROPULSION (2) --- Aluminum Leg Aluminum Leg > --- UTILITY (2) ------ (None) > --- WEAPON (2) ------- (None) > --- INVENTORY (5) ---- Ion Engine Light Treads Small Storage Unit Seismic Detector Light Armor Plating Peak State ------------ > --- POWER ------------ Ion Engine > --- PROPULSION ------- Light Treads Light Treads > --- UTILITY ---------- Large Storage Unit Seismic Detector > --- WEAPON ----------- Medium Laser Medium Laser > --- INVENTORY -------- Ion Engine Aluminum Leg Aluminum Leg Small Storage Unit Seismic Detector Targeting Computer ECM Suite Light Armor Plating Grenade Launcher Mining Laser [Rating: 8] Favorites ----------- Power Ion Engine Engine Ion Engine Propulsion Light Treads Treads Light Treads Leg Aluminum Leg Utility Seismic Detector Device Seismic Detector Storage Large Storage Unit Weapon Medium Laser Energy Gun Medium Laser Launcher Grenade Launcher Special Weapon Mining Laser Build | -11 -10 -10 -10 ------- Run | Yrd Mat Min Sub Slots Evolved . | . . . . Power . | . . . . Propulsion . | . . . . Utility . | . . . . Weapon . | . . . . Parts Attached 13 | 6 3 . 4 Power 2 | 1 1 . . Engine 2 | 1 1 . . Core . | . . . . Reactor . | . . . . Propulsion 4 | 2 . . 2 Treads 2 | 2 . . . Leg 2 | . . . 2 Wheel . | . . . . Hover . | . . . . Flight . | . . . . Utility 3 | 1 2 . . Device 1 | . 1 . . Storage 2 | 1 1 . . Processor . | . . . . Hackware . | . . . . Protection . | . . . . Artifact . | . . . . Weapon 4 | 2 . . 2 Energy Gun 2 | 2 . . . Energy Cannon . | . . . . Ballistic Gun . | . . . . Ballistic Cannon . | . . . . Launcher 1 | . . . 1 Special Weapon 1 | . . . 1 Impact Weapon . | . . . . Slashing Weapon . | . . . . Piercing Weapon . | . . . . Special Melee Weapon . | . . . . Unidentified Prototypes . | . . . . Parts Lost 7 | . . . 7 Power . | . . . . Propulsion 2 | . . . 2 Utility 1 | . . . 1 Weapon 4 | . . . 4 Highest Loss Streak 7 | . . . 7 To Critical Strikes . | . . . . Average Backups 8 | 1 6 10 10 Power . | . 1 1 1 Propulsion 2 | 1 2 2 2 Utility 3 | . 2 5 5 Weapon 1 | . . 2 1 Tool/Special . | . . . . Unused Backups 6 | . . . 6 Power 1 | . . . 1 Propulsion 1 | . . . 1 Utility 4 | . . . 4 Weapon . | . . . . Tool/Special . | . . . . Average Slot Usage (%) 98 | . 99 100 96 Engine 14 | . 14 14 14 Treads 27 | . 28 28 26 Device 13 | . 13 14 13 Storage 14 | . 14 14 14 Energy Gun 24 | . 28 28 14 Special Weapon 3 | . . . 11 Peak Build Rating 8 | 6 8 8 8 Average Rating 7 | 5 6 8 7 On Entrance 5 | . 6 8 8 Avg Prop Armor Cover (%) . | . . . . Naked Turns . | . . . . Heaviest Build 30 | 12 30 30 30 Greatest Support 40 | 40 40 40 40 Greatest Overweight (x) 9 | . . . 9 Average Overweight (x) . | . . . . Largest Inventory Capacity 15 | 8 15 15 15 Average Capacity 13 | 7 12 15 14 Most Carried 11 | 3 10 11 11 Average Carried 8 | 1 6 10 10 Final Capacity 15 | 8 15 15 5 Final Carried 11 | 3 10 11 5 Class Distribution -------------------- 100% | Mutant Dominant Class ---------------- Mutant | -10/Materials Mutant | -10/Mines Mutant | -10/Subcaves Resources | -11 -10 -10 -10 ----------- Run | Yrd Mat Min Sub Matter Collected 317 | 220 97 . . Remotely . | . . . . Salvage Created 419 | . 339 42 38 Parts 18 | . 16 2 . Haulers Intercepted . | . . . . Recyclers Shooed . | . . . . Parts Field Recycled . | . . . . Retrieved Matter . | . . . . Parts Self-Destructed 16 | . . . 16 Prevented . | . . . . Parts Restored . | . . . . Kills | -11 -10 -10 -10 ------- Run | Yrd Mat Min Sub Combat Hostiles Destroyed 12 | . 9 . 3 Guns 8 | . 8 . . AOE 3 | . . . 3 Classes Destroyed 5 | . 3 1 1 Recycler 1 | . . 1 . Watcher 1 | . 1 . . Swarmer 5 | . 3 . 2 Grunt 6 | . 6 . . Subdweller 1 | . . . 1 Best Kill Streak 3 | . 3 1 3 Combat Bots Only 3 | . 3 . 3 Max Kills in Single Turn 2 | . 2 1 2 Gunslinging 1 | . 1 . . Exploded 2 | . . . 2 Melee . | . . . . Uniques/NPCs Destroyed . | . . . . Combat | -11 -10 -10 -10 -------- Run | Yrd Mat Min Sub Hostile Shots Fired 81 | . 38 3 40 Missed 24 | . 11 1 12 Hits 57 | . 27 2 28 Projectile 57 | . 27 2 28 Critical Strikes 1 | . . . 1 Damage Taken 1057 | . 310 34 713 Core 275 | . 18 . 257 Absorbed by Shields . | . . . . Core Remaining (%) 100 | 100 . . . Volleys Fired 55 | . 29 2 24 Largest 2 | . 2 2 2 Hottest 150 | . 100 100 150 Shots Fired 102 | . 58 4 40 Gun 82 | . 58 4 20 Cannon . | . . . . Launcher 5 | . . . 5 Special 15 | . . . 15 Kinetic . | . . . . Thermal 97 | . 58 4 35 Explosive 5 | . . . 5 Electromagnetic . | . . . . Robot Hit Streak 13 | . 13 3 8 Robot Miss Streak 6 | . 6 1 1 Penetration Max . | . . . . Secondary Targets 2 | . 2 . . Max Gunslinging Chain 1 | . 1 . . Shots Hit Robots 45 | . 36 3 6 Core Hits 24 | . 17 2 5 Critical Kills . | . . . . Critical Parts Destroyed . | . . . . Critical Strikes 2 | . 1 1 . Burn 2 | . 1 1 . Melee Attacks . | . . . . Impact . | . . . . Slashing . | . . . . Piercing . | . . . . Sneak Attacks . | . . . . Combat Hostiles . | . . . . Follow-up Attacks . | . . . . Damage Inflicted 891 | . 453 70 368 Guns 541 | . 453 38 50 Cannons . | . . . . Explosions 318 | . . . 318 Melee . | . . . . Ramming 32 | . . 32 . Kinetic . | . . . . Thermal 541 | . 453 38 50 Explosive 318 | . . . 318 Electromagnetic . | . . . . Impact . | . . . . Slashing . | . . . . Piercing . | . . . . Highest Corruption . | . . . . Average Corruption . | . . . . Corruption Purged . | . . . . Corruption Blocked . | . . . . Overload Shots . | . . . . Overflow Damage 3 | . . . 3 Projectiles . | . . . . Explosions 3 | . . . 3 Melee . | . . . . Knockbacks . | . . . . Impact . | . . . . Kinetic . | . . . . Secondary . | . . . . Self-Inflicted Damage 55 | . . . 55 Shots 2 | . . . 2 Rammed 3 | . . 3 . Targets Rammed 4 | . . 4 . Kicked . | . . . . Crushed 1 | . . 1 . Highest Temperature 405 | . 405 87 2 Average Temperature 109 | . 115 48 1 Received Heat Transfer 318 | . 144 18 156 Effects 1 | . 1 . . Matter Decay 1 | . 1 . . Siege Activations . | . . . . Martial Activations . | . . . . Shielding Activations . | . . . . Robots Disrupted . | . . . . Combat Hostiles . | . . . . Robots Corrupted . | . . . . Combat Hostiles . | . . . . Parts Fried . | . . . . Impact Corruptions . | . . . . Robots Melted 1 | . 1 . . Combat Hostiles 1 | . 1 . . Parts Melted 2 | . 2 . . Heat Transferred 1739 | . 1406 185 148 Parts Sabotaged . | . . . . Parts Stolen . | . . . . Parts Stripped . | . . . . Power Chain Reactions . | . . . . Alert | -11 -10 -10 -10 ------- Run | Yrd Mat Min Sub Maximum Alert Level . | . . . . Low Security (%) 100 | 100 100 100 . Level 1 . | . . . . Level 2 . | . . . . Level 3 . | . . . . Level 4 . | . . . . Level 5 . | . . . . High Security . | . . . . Max Security . | . . . . Peak Influence 92 | . 92 56 . Initial 13 | . . 13 . Average 15 | . 27 6 . Influence Increases 329 | . 228 61 40 Destroy 0b10 Robot/C 260 | . 180 40 40 Destroy 0b10 Robot/NC 10 | . 5 5 . Destroy Leader 52 | . 42 10 . Allied During Kill 6 | . . 6 . Destroy Structure 1 | . 1 . . Influence Decreases 329 | . 193 96 40 Entered New Map 22 | . . 22 . Time Decay 275 | . 193 74 8 Lost Part 32 | . . . 32 Squads Dispatched 2 | . 2 . . Investigation . | . . . . Extermination . | . . . . Reinforcement 2 | . 2 . . Assault . | . . . . Garrison . | . . . . Intercept . | . . . . Searches Triggered . | . . . . Construction Impeded . | . . . . Haulers Reinforced . | . . . . Active Scanning Responses . | . . . . Cargo Convoy Interrupts . | . . . . Stealth | -11 -10 -10 -10 --------- Run | Yrd Mat Min Sub Distress Signals . | . . . . Communications Jammed . | . . . . Distress Signals . | . . . . Times Spotted 22 | . 15 2 5 Peak Tracking Total 4 | . 2 1 4 Tactical Retreats . | . . . . Traps | -11 -10 -10 -10 ------- Run | Yrd Mat Min Sub Traps Triggered 1 | . . . 1 Indirectly . | . . . . Trap Hack Attempts . | . . . . Triggered . | . . . . Disarmed . | . . . . Reprogrammed . | . . . . Reused . | . . . . Traps Extracted . | . . . . Installed . | . . . . Triggered . | . . . . Machines | -11 -10 -10 -10 ---------- Run | Yrd Mat Min Sub Machines Disabled . | . . . . Max in Single Turn . | . . . . Machines Repaired . | . . . . Machines Dismantled . | . . . . Machines Sabotaged . | . . . . Overloaded Fab Kills . | . . . . Hacking | -11 -10 -10 -10 --------- Run | Yrd Mat Min Sub Machines Accessed 2 | . 1 . 1 Terminals 1 | . 1 . . Fabricators . | . . . . Repair Stations . | . . . . Recycling Units . | . . . . Scanalyzers . | . . . . Garrison Access . | . . . . Total Hacks 10 | . 1 . 9 Successful 9 | . . . 9 Failed 1 | . 1 . . Catastrophic . | . . . . Database Lockouts . | . . . . Manual . | . . . . Terminals 1 | . 1 . . Fabricators . | . . . . Repair Stations . | . . . . Recycling Units . | . . . . Scanalyzers . | . . . . Garrison Access . | . . . . Terminal Hacks 9 | . . . 9 Record 8 | . . . 8 Proto ID Catalog 1 | . . . 1 Fabricator Hacks . | . . . . Repair Station Hacks . | . . . . Recycling Unit Hacks . | . . . . Scanalyzer . | . . . . Garrison Access Hacks . | . . . . Unauthorized Hacks . | . . . . Terminals . | . . . . Fabricators . | . . . . Repair Stations . | . . . . Recycling Units . | . . . . Scanalyzers . | . . . . Garrison Access . | . . . . Data Cores Recovered . | . . . . Used . | . . . . Hacking Detections 1 | . 1 . . Full Trace Events . | . . . . Feedback Events . | . . . . Feedback Blocked . | . . . . Robot Schematics Acquired . | . . . . Robots Built . | . . . . Authchips . | . . . . Time . | . . . . Total Robot Build Rating . | . . . . Part Schematics Acquired . | . . . . Parts Built . | . . . . Authchips . | . . . . Time . | . . . . Total Part Build Rating . | . . . . Part Studies Acquired . | . . . . Parts Repaired . | . . . . Time . | . . . . Parts Recycled . | . . . . Recycled Matter . | . . . . Retrieved Matter . | . . . . Retrieved Components . | . . . . Parts Scanalyzed . | . . . . Part Schematics Acquired . | . . . . Parts Damaged . | . . . . Bothacking | -11 -10 -10 -10 ------------ Run | Yrd Mat Min Sub Used RIF Installer . | . . . . Robots Hacked . | . . . . Non-combat . | . . . . Combat . | . . . . Robot Hacks Applied . | . . . . Relay Couplers Released . | . . . . Fabnet Peak Effective % . | . . . . Robots Rewired . | . . . . Allies Hacked . | . . . . Hacks Repelled . | . . . . Allies | -11 -10 -10 -10 -------- Run | Yrd Mat Min Sub Total Allies 2 | . . 2 . Largest Group 2 | . . 2 2 Highest-Rated Group 46 | . . 42 46 Highest-Rated Ally 31 | . . 31 31 Total Orders . | . . . . Ally Attacks 10 | . . 4 6 Total Damage 230 | . . 85 145 Kills 2 | . . 2 . Allies Corrupted . | . . . . Allies Melted . | . . . . Intel | -11 -10 -10 -10 ------- Run | Yrd Mat Min Sub Active Infowar (turns) 1829 | . 648 688 493 Seismic 1829 | . 648 688 493 Robot Analysis Total . | . . . . Derelict Logs Recovered 3 | . . 2 1 Drone Launches . | . . . . Drone Recoveries . | . . . . Exploration | -11 -10 -10 -10 ------------- Run | Yrd Mat Min Sub Turns Passed 1975 | 89 677 688 521 Spaces Moved 1014 | 51 340 373 250 Core 4 | 3 . . 1 Treads 1006 | 48 340 373 245 Legs 4 | . . . 4 Wheels . | . . . . Hover . | . . . . Flight . | . . . . Fastest Speed 50 | 50 160 160 120 Average Speed 160 | 153 160 160 162 Slowest Speed 500 | 160 160 160 500 Overloaded Moves . | . . . . Propulsion Burnouts . | . . . . Robots Hopped . | . . . . Potential Cave-ins . | . . . . Cave-ins Triggered . | . . . . Exploration Rate (%) 39 | 5 51 83 18 Regions Visited 3 Branch Regions 2 Pre-discovered Areas 2 | . . 2 . Known Exits Taken . | . . . . Unknown Exits Taken 3 | 1 1 1 . Scrap Searched 1 | . . 1 . Spaces Dug . | . . . . Terrain Destroyed 26 | . . . 26 Melee . | . . . . Projectile . | . . . . AOE 26 | . . . 26 Terrain Rammed . | . . . . Walls Destroyed . | . . . . Machines Disabled . | . . . . Actions | -11 -10 -10 -10 --------- Run | Yrd Mat Min Sub Total 1226 | 59 414 458 295 Wait 127 | . 36 79 12 Move 1011 | 50 339 372 250 Hop . | . . . . Pick Up 10 | 3 6 1 . Fast Attach 7 | 6 1 . . Attach 4 | . . . 4 Detach . | . . . . Swap 4 | . 2 . 2 Drop 4 | . 1 . 3 Fire 55 | . 29 2 24 Melee . | . . . . Ram . | . . . . Kick . | . . . . Crush 4 | . . 4 . Escape Stasis . | . . . . Rewire . | . . . . Trap . | . . . . Miscellaneous . | . . . . Route ------- -11/Scrapyard -10/Materials -10/Mines (discovered 2 exits: [*Mat] / *Sub) -10/Subcaves History --------- Turn | Location | Event 6 | -11/Scrapyard | Discovered new exit (range 15) 90 | -11/Scrapyard | Entered Materials 317 | -10/Materials | Build established: Mutant 732 | -10/Materials | Discovered new exit (range 11) 767 | -10/Materials | Entered Mines 777 | -10/Mines | Met a Derelict bent on vengeance 1109 | -10/Mines | Discovered new exit (range 14) 1437 | -10/Mines | Discovered new exit (range 5) 1455 | -10/Mines | Entered Subcaves 1455 | -10/Subcaves | Accompanied by 2 allies 1456 | -10/Subcaves | Approached by a straggling Scientist 1460 | -10/Subcaves | Led the pair of lost Derelicts to an unsafe place 1601 | -10/Subcaves | Learned 2 Materials zone layouts 1695 | -10/Subcaves | Visited 4L-MR0's lab 1947 | -10/Subcaves | Ambushed by angry Subdweller bent on revenge 1957 | -10/Subcaves | Core integrity fell below 50% 1965 | -10/Subcaves | Core integrity fell below 20% 1976 | -10/Subcaves | Destroyed by L6-PU6(R) with Subdweller Beam Cannon Last Messages --------------- 01927_ D2-NUY(z) destroyed. 01930_ Subatomizers dissect the Carbon-fiber Leg. 01938_ Mining Laser destroyed. 01938_ Destroyed Mining Laser. 01939_ Lgt. Treads destroyed. 01940_ 7E-NWB(R) destroyed. 01947_ L6-PU6(R) angrily emerges from the Twisted Machinery. 01947_ L6-PU6(R): "OHNO!" 01948_ Seismic Detector destroyed. 01951_ S-10 Pest destroyed. 01955_ 9B-LDR(c) destroyed. 01956_ Lgt. Treads destroyed. 01959_ Grenade Launcher destroyed. 01966_ The unstable cave ceiling collapses. 01966_ Med. Laser destroyed. 01970_ Dropped ECM Suite. 01970_ Dropped Targeting Computer. 01971_ Dropped Lrg. Storage Unit. Map ----- +----------------------------------------------------+ | ?????????????????????????????????????????????????? | | ?????????????????????????????????????????????????? | | ?????????????????????????????????????????????????? | | ?????????????????????????????????????????????????? | | ?????????????????????????????????????????????????? | | ?????????????????????????????????????????????????? | | ?????????????????????????????????????????????????? | | ?????????????????????????????????????????????????? | | ?????????????????????????????????????????????????? | | ?????????????????????????????????????????????????? | | ?????????????????????????????????????????????????? | | ?????????????????????????????????????????????????? | | ?????????????????????????????????????????????????? | | ?????????????????????????????????????????????????? | | ?????????????????????????????????????????????????? | | ????????????????##???????????????????????????????? | | ????????????????? ??????????????????????????????? | | ?????????????????? ?????????????????????????????? | | ??????????????????? ????????????????????????????? | | ???????????????????? ????????????????????????????? | | ???????????????# ???? ???????????????????????????? | | ???????????????# ??# ??????????????????????????? | | ????????????????# ## ?????????????????????????? | | ?????????????????# #????????????????????????? | | ?????????????????# ##??????????????????????? | | ?????????????????# @######?????????????????? | | ?????????????????##* # #?????????????????? | | ??????????????????#%[ ## % !!###???????????????? | | ?????????????????# =???## % ! ##??????????????? | | ??????????????? ??????# " #??????????????? | | ????????????? ????????###""" RR ##?????????????# | | ????????????# ????????????#"""## #?????????????# | | ??????????????????????????#""" =%=##????????????# | | ??????????????????????????#""""= ! ##???????????# | | ?????????????????????????# " % ##??????????# | | ????????????????????????# "" ##?????##### | | ???????????????????????" " =%!"" ##???## | | ???????????????????????" ##### | | ??????????????????????? # "" # # | | ??????????????????????# ###" """ | | ??????????????????????? "" # ??##" " ### | | ?????????????????????? """ ## ???## ## | | ?????????????????????# ?""? ? ????## ### | | ?????????????????????# ????##? ?????# #?# | | ??????????????????????????????# ???? #? | | ??????????????????????????????? ?? #### #### | | ??????????????????????????????? ? ###?? ??? | | ???????????????????????????????? ????? #?? | | ???????????????????????????????### ????? #?? | | ?????????????????????????????????## ????? ##?? | +----------------------------------------------------+ Best States ------------- Heat Dissipation 25 Energy Generation 10 Energy Capacity 250 Matter Stores 300 Matter Capacity 300 Sight Range 16 Terrain Scan Density 10 Evasion (%) 40 Recoil Reduction 2 Item Schematics ----------------- None Robot Schematics ------------------ None Fabricated ------------ Nothing Repaired ---------- Nothing Studied --------- None Alien Tech Used ----------------- None Achievements -------------- None Challenges ------------ None Game ------ Seed CouplerThermicWheel Manual? 0 Play Time 00:12:02 Cumulative 18.5 hours Start 2025.12.19 @ 22:10:02 End 2025.12.19 @ 22:33:52 Sessions 1 Manual Loads 0 Difficulty Rogue Special Mode None Game No. 51 Rogue 51 Adventurer 0 Explorer 0 Win Type - Total 0 Types 0/0/0/0/0/0/0/0/0/0 Lore% 17 Gallery% 22 Achievement% 17 Wizard Run 0 Options --------- Layout 1 ASCII 0 Keyboard 0 Movement Mouse Keybinds 0 Fullscreen 1 Font 32/SmallcapsGlow Map View 50x35 Zoom Use 0% Tactical HUD 1 Map Filters NONE Filters NONE Steam 1 RUN: 2ebabae0-2bc9-4f6f-83c1-e57d29364f6c